bitfinex/quotes_ETHUSD_20240714
["timestamp","ask_amount","ask_price","bid_price","bid_amount"]
[1720970483241,0.48621606,3194.3,3194.0,0.792]
[1720970483518,2.1891482,3194.3,3194.0,0.792]
[1720970484387,0.54628233,3194.3,3194.0,0.792]
[1720970484826,0.48621606,3194.3,3194.0,0.792]
[1720970486026,2.1290207,3194.3,3194.0,0.792]
[1720970486800,0.06001168,3194.2,3194.0,0.792]
[1720970487301,2.1290207,3194.3,3194.0,0.792]
[1720970487708,0.06001168,3194.2,3194.0,0.792]
[1720970488218,1.64280464,3194.3,3194.0,0.792]
[1720970488401,1.64280464,3194.3,3194.2,3.29653]
[1720970488606,1.64280464,3194.3,3194.2,5.80106]
[1720970490738,1.70079037,3194.3,3194.2,5.80106]
[1720970492837,0.05798573,3194.3,3194.2,5.80106]
[1720970493414,0.49141059,3194.4,3194.2,3.29653]
[1720970493731,0.49141059,3194.4,3194.3,2.50446]
[1720970494897,0.49141059,3194.4,3194.3,3.084559]
[1720970497240,0.49141059,3194.4,3194.3,2.50446]
[1720970498205,0.54886091,3194.4,3194.3,2.50446]
[1720970499927,4.47835944,3194.4,3193.7,8.01032599]
[1720970500131,1.64229853,3194.3,3193.7,7.98532599]
[1720970500331,0.44783594,3194.2,3193.7,8.77732599]
[1720970501739,0.05726582,3194.1,3193.7,8.77732599]
[1720970502047,0.05726582,3194.1,3193.7,3.29688]
[1720970502639,0.05726582,3194.1,3193.7,0.792]
[1720970502640,1.6999771,3194.1,3193.7,0.792]
[1720970502853,1.9147584,3194.1,3193.7,0.792]
[1720970503047,2.2872,3194.0,3193.5,3.30030342]
[1720970503222,3.92991128,3194.0,3193.5,3.30030342]
[1720970503428,0.05640621,3193.9,3193.5,3.30030342]
[1720970507753,0.05640621,3193.9,3193.5,0.79522342]
[1720970511531,3.93054087,3194.0,3193.5,0.79522342]
[1720970511767,0.0569469,3193.8,3193.5,0.79522342]
[1720970511961,0.05700151,3193.9,3193.5,0.79522342]
[1720970512119,0.05689228,3193.7,3193.5,0.79522342]
[1720970512320,4.34507309,3194.0,3193.5,0.79522342]
[1720970512538,0.05680855,3193.6,3193.5,0.79522342]
[1720970512745,3.93054087,3194.0,3193.5,0.79522342]
[1720970512952,0.41453222,3193.9,3193.5,0.79522342]
[1720970513286,0.47156283,3193.9,3193.5,0.79522342]
[1720970514518,2.11509946,3193.9,3193.5,0.79522342]
[1720970514677,2.11509992,3193.9,3193.5,0.79522342]
[1720970514984,1.7005677,3193.9,3193.5,0.79522342]
[1720970515192,0.05703061,3193.9,3193.7,0.792]
[1720970515950,1.64353709,3194.1,3193.7,0.792]
[1720970516455,0.05717551,3194.0,3193.7,0.792]
[1720970517987,1.70075987,3194.0,3193.7,0.792]
[1720970518287,0.05717551,3194.0,3193.7,0.792]
[1720970518853,0.05717551,3194.0,3193.7,3.29691]
[1720970519753,0.2272515,3194.0,3193.5,0.79522342]
[1720970519970,3.98118436,3193.9,3193.5,0.00322342]
[1720970520290,3.98118436,3193.9,3193.5,2.50830342]
[1720970520457,0.05704986,3193.8,3193.5,2.50830342]
[1720970520857,3.98140504,3193.9,3193.5,2.50830342]
[1720970521064,2.3376,3193.9,3193.5,3.30030342]
[1720970521279,0.05704986,3193.8,3193.5,3.30030342]
[1720970523359,0.05704986,3193.8,3193.5,0.79522342]
[1720970523560,1.7011969,3193.8,3193.5,0.79522342]
[1720970523793,2.3376,3193.9,3193.5,0.79522342]
[1720970523977,0.05699525,3193.7,3193.5,0.79522342]
[1720970524178,0.05699525,3193.7,3193.5,0.00322342]
[1720970524179,1.64421217,3193.7,3193.5,0.00322342]
[1720970524378,1.7011528,3193.6,3193.5,0.00322342]
[1720970526673,1.70108254,3193.6,3193.5,0.00322342]
[1720970527073,2.48834063,3193.6,3193.5,0.00322342]
[1720970527300,4.98664201,3193.6,3193.5,0.00322342]
[1720970527604,3.01367172,3193.6,3193.5,0.00322342]
[1720970528303,4.98537913,3193.6,3193.5,0.00322342]
[1720970530017,4.98492749,3193.6,3193.5,0.00322342]
[1720970530236,3.01367172,3193.6,3193.5,0.00322342]
[1720970531773,4.13048505,3193.6,3193.5,0.00322342]
[1720970531974,1.69908505,3193.6,3193.5,0.00322342]
[1720970532210,0.05694063,3193.6,3193.5,0.79522342]
[1720970532569,0.05694063,3193.6,3193.5,0.00322342]
[1720970533612,0.54852059,3193.6,3193.5,0.00322342]
[1720970535181,0.54852059,3193.6,3193.5,0.79522342]
[1720970535390,0.54852059,3193.6,3193.5,3.86433976]
[1720970536980,0.54852059,3193.6,3193.5,3.30030342]
[1720970537720,0.54852059,3193.6,3193.5,2.50830342]
[1720970538608,0.54852059,3193.6,3193.5,3.30030342]
[1720970541310,0.54852059,3193.6,3193.5,5.80538342]
[1720970542016,0.54852059,3193.6,3193.5,11.20036342]
[1720970542217,0.54852059,3193.6,3193.5,15.32039976]
[1720970542516,0.49157996,3193.6,3193.5,15.32039976]
[1720970546229,0.49157996,3193.6,3193.5,6.62833976]
[1720970546436,0.49157996,3193.6,3193.5,8.80538342]
[1720970546600,0.54644897,3193.6,3193.5,8.80538342]
[1720970547929,0.54644897,3193.6,3193.5,0.00322342]
[1720970548991,2.87984897,3193.6,3193.5,0.00322342]
[1720970549499,4.52355367,3193.6,3193.5,0.00322342]
[1720970549807,3.33220434,3193.6,3193.5,0.00322342]
[1720970550328,5.30475577,3193.6,3193.5,0.00322342]
[1720970551510,3.33220434,3193.6,3193.5,0.00322342]
[1720970553150,3.33220434,3193.6,3192.3,4.99206755]
[1720970553151,2.3334,3193.5,3192.3,4.99206755]
[1720970553440,2.3334,3192.7,3192.3,4.99206755]
[1720970553642,2.3334,3192.7,3191.9,2.50634]
[1720970553839,0.05338297,3192.6,3191.9,2.50634]
[1720970554142,2.3334,3192.7,3191.9,2.50634]
[1720970554447,0.49172732,3192.6,3191.9,2.50634]
[1720970555223,0.49172732,3192.6,3191.8,7.49843755]
[1720970555224,0.93846881,3192.6,3191.8,7.49847755]
[1720970555428,2.58075642,3192.6,3191.8,7.49847755]
[1720970555624,0.93846881,3192.6,3191.8,7.49847755]
[1720970555830,0.05338651,3192.5,3191.8,7.49847755]
[1720970556029,2.57946332,3192.6,3191.8,7.49847755]
[1720970556366,0.54463484,3192.5,3191.8,4.99206755]
[1720970559226,0.49128633,3192.5,3191.8,4.99206755]
[1720970559426,0.05329383,3192.4,3191.8,4.99206755]
[1720970560711,0.05329383,3192.4,3191.8,7.49848755]
[1720970560912,0.05329383,3192.4,3191.9,0.06265573]
[1720970561258,0.49172732,3192.6,3192.0,2.50626]
[1720970561429,0.05311508,3192.3,3192.0,2.50626]
[1720970561623,0.49172732,3192.6,3192.0,2.50626]
[1720970561959,0.49172732,3192.6,3192.1,2.50617]
[1720970562313,0.49172732,3192.6,3191.9,2.50628]
[1720970562550,0.49172732,3192.6,3192.0,2.50624]
[1720970562922,0.05322444,3192.5,3192.2,2.50605]
[1720970563128,0.49172732,3192.6,3192.2,2.50605]
[1720970563440,0.80702515,3192.6,3192.0,5.01242]
[1720970563650,0.80702515,3192.6,3192.0,2.50618]
[1720970563819,0.80702515,3192.6,3192.1,2.50612]
[1720970564019,0.49172732,3192.6,3192.1,2.50612]
[1720970565253,0.49172732,3192.6,3192.2,2.5061]
[1720970566361,0.49172732,3192.6,3192.0,5.01238]
[1720970566662,0.49172732,3192.6,3192.2,2.50608]
[1720970566818,0.49172732,3192.6,3192.4,2.50594]
[1720970567163,0.0512743,3192.5,3192.4,3.007142]
[1720970567822,0.49172732,3192.6,3192.4,3.007142]
[1720970568017,0.49172732,3192.6,3192.4,2.50594]
[1720970569223,0.49172732,3192.6,3192.5,2.50587]
[1720970569594,0.54306187,3192.6,3192.5,2.50587]
[1720970570061,0.49172732,3192.6,3192.5,2.50587]
[1720970570761,0.49172732,3192.6,3192.3,2.50598]
[1720970570956,0.49172732,3192.6,3192.2,2.50608]
[1720970571162,0.49172732,3192.6,3192.3,2.50598]
[1720970571659,0.05133797,3192.5,3192.3,2.50598]
[1720970572355,0.05131234,3192.4,3192.3,2.50598]
[1720970572660,0.49172732,3192.6,3192.3,2.50598]
[1720970573169,0.49172732,3192.6,3192.2,2.50608]
[1720970573170,0.05136702,3192.5,3192.2,2.50608]
[1720970573372,0.05136702,3192.5,3192.3,2.50602]
[1720970573573,0.49172732,3192.6,3192.3,2.50602]
[1720970573738,0.05145757,3192.4,3192.3,2.50602]
[1720970573943,0.49172732,3192.6,3192.3,2.50602]
[1720970574266,0.05151225,3192.5,3192.3,2.50602]
[1720970574584,0.05151225,3192.5,3192.1,5.01228]
[1720970574768,0.05151225,3192.5,3192.2,2.50609]
[1720970574965,0.49172732,3192.6,3192.3,2.50602]
[1720970575378,0.05151225,3192.5,3192.3,2.50602]
[1720970580074,0.32785099,3192.8,3192.3,2.50602]
[1720970580282,0.04960488,3192.4,3192.3,2.50602]
[1720970580441,2.2647,3192.7,3192.3,2.50602]
[1720970580784,0.04972499,3192.6,3192.3,2.50602]
[1720970581280,0.04972499,3192.6,3192.2,0.793]
[1720970581458,2.2647,3192.7,3192.2,3.2991]
[1720970581658,2.5239551,3192.7,3192.2,0.793]
[1720970582353,0.04952315,3192.6,3192.2,0.793]
[1720970582553,2.5239551,3192.7,3192.1,2.50612]
[1720970583699,0.04952315,3192.6,3192.2,0.793]
[1720970584050,2.5239551,3192.7,3192.2,0.793]
[1720970584687,0.04952315,3192.6,3192.2,0.793]
[1720970584986,2.5239551,3192.7,3192.2,0.793]
[1720970585479,0.04955229,3192.6,3192.4,0.793]
[1720970587355,0.04955229,3192.6,3192.4,3.29894]
[1720970588600,0.04955229,3192.6,3192.4,2.50594]
[1720970588804,0.04955229,3192.6,3192.2,3.29904]
[1720970589100,0.31376262,3192.6,3192.3,2.50601]
[1720970589397,0.04949647,3192.5,3192.3,5.01198]
[1720970589598,0.04949647,3192.5,3192.3,2.50597]
[1720970591199,0.04949647,3192.5,3192.3,3.29897]
[1720970591663,0.04949647,3192.5,3192.4,5.0119]
[1720970591864,0.04949647,3192.5,3192.4,5.59239]
[1720970592065,0.04949647,3192.5,3192.4,5.0119]
[1720970593463,0.04949647,3192.5,3192.4,2.50595]
[1720970595182,1.69309646,3192.5,3192.4,2.50595]
[1720970596119,0.04949647,3192.5,3192.4,2.50595]
[1720970596417,1.69557753,3192.5,3192.4,2.50595]
[1720970596614,0.04949647,3192.5,3192.4,2.50595]
[1720970596823,1.6955762,3192.5,3192.4,2.50595]
[1720970597183,0.04949647,3192.5,3192.4,2.50595]
[1720970598528,2.44399647,3192.5,3192.4,2.50595]
[1720970603132,0.04949647,3192.5,3192.4,2.50595]
[1720970605608,0.04949647,3192.5,3192.3,2.50598]
[1720970605805,2.02586677,3192.5,3192.2,3.29907]
[1720970606042,2.02586677,3192.5,3192.2,3.29904]
[1720970606216,1.9763703,3192.5,3192.2,3.29904]
[1720970606549,2.22318054,3192.5,3192.2,0.793]
[1720970606720,4.3708703,3192.4,3192.0,3.29923]
[1720970606915,1.64769877,3192.1,3192.0,3.29923]
[1720970607230,0.04503463,3192.1,3192.0,3.29923]
[1720970607545,1.64765007,3192.1,3192.0,3.29923]
[1720970607930,1.69271384,3192.1,3191.8,2.50641]
[1720970608131,1.64765007,3192.0,3191.8,3.29941]
[1720970608510,0.04507091,3191.9,3191.8,3.29941]
[1720970610547,2.3945,3192.4,3191.8,3.29941]
[1720970610735,0.04492773,3191.9,3191.8,3.29941]
[1720970610947,1.64723632,3192.0,3191.8,3.29936]
[1720970611105,2.3945,3192.4,3191.8,3.29936]
[1720970611106,0.04492773,3191.9,3191.8,3.29936]
[1720970611311,0.04492773,3191.9,3191.8,8.07528]
[1720970611540,1.64723632,3192.1,3192.0,2.50626]
[1720970611729,1.64723632,3192.1,3192.0,3.29926]
[1720970611933,1.69240156,3192.1,3192.0,5.80552]
[1720970612142,0.04516524,3192.1,3192.0,5.80552]
[1720970616555,0.04516524,3192.1,3192.0,3.29926]
[1720970616848,1.69210991,3192.1,3192.0,3.29926]
[1720970617051,0.04516524,3192.1,3192.0,3.29926]
[1720970618360,0.04516524,3192.1,3192.0,8.71822759]
[1720970618563,0.04516524,3192.1,3192.0,8.655579]
[1720970622467,0.04516524,3192.1,3192.0,5.80552]
[1720970623654,1.69225861,3192.1,3192.0,3.29926]
[1720970624151,0.04516524,3192.1,3192.0,3.29926]
[1720970624758,1.69230857,3192.1,3192.0,3.29926]
[1720970625251,1.69230857,3192.1,3192.0,0.793]
[1720970625645,0.04516524,3192.1,3192.0,0.793]
[1720970627140,2.3974,3192.2,3192.0,0.793]
[1720970627341,0.0442927,3192.1,3191.8,3.29936]
[1720970627541,1.64707609,3192.0,3191.8,3.29936]
[1720970627847,0.04413075,3191.9,3191.8,0.793]
[1720970628258,1.69120684,3191.9,3191.8,0.793]
[1720970629193,0.04413075,3191.9,3191.8,0.793]
[1720970629542,0.21325143,3191.9,3191.3,4.99206755]
[1720970629749,1.64707609,3191.5,3191.2,0.1148461]
[1720970629983,1.64707609,3191.4,3191.1,2.92297921]
[1720970630194,1.6909432,3191.4,3191.1,2.92297921]
[1720970630543,1.6909432,3191.4,3191.2,2.50688]
[1720970631246,0.04379491,3191.4,3191.2,2.50688]
[1720970631491,0.04379491,3191.4,3191.1,0.793]
[1720970631670,0.04379491,3191.4,3191.1,3.29992]
[1720970632673,0.04379491,3191.4,3190.9,4.99206755]
[1720970632885,0.04379491,3191.4,3190.9,5.78506755]
[1720970633501,1.64467287,3191.5,3190.9,5.78506755]
[1720970633703,0.04396076,3191.3,3190.9,5.78506755]
[1720970633995,2.446,3191.4,3190.9,8.29214755]
[1720970634349,0.04374879,3191.3,3190.9,8.29214755]
[1720970635206,0.04374879,3191.3,3190.9,5.78506755]
[1720970635879,0.04374879,3191.3,3190.9,0.793]
[1720970636288,0.04374879,3191.3,3190.6,2.50731]
[1720970636289,0.45719096,3191.3,3190.6,2.50731]
[1720970636490,0.45719096,3191.3,3190.7,0.793]
[1720970636690,0.41344217,3191.3,3190.7,0.793]
[1720970636906,0.04362861,3191.2,3190.7,3.30027]
[1720970637272,4.0896724,3191.4,3190.7,3.30027]
[1720970637473,0.04369016,3191.1,3190.7,3.30027]
[1720970637713,4.49863964,3191.4,3190.9,0.793]
[1720970638009,0.04363543,3191.0,3190.9,0.793]
[1720970638211,2.85496724,3191.4,3190.8,0.793]
[1720970638372,0.04366458,3191.0,3190.8,0.793]
[1720970638715,0.04355155,3190.9,3190.8,0.793]
[1720970638884,4.49863964,3191.4,3190.8,0.793]
[1720970639086,0.04349324,3190.9,3190.7,2.50727]
[1720970639286,0.44986396,3191.3,3190.7,2.50727]
[1720970639622,0.0434385,3190.8,3190.7,2.50727]
[1720970639774,2.446,3191.2,3190.7,2.50727]
[1720970640375,0.04360269,3191.1,3190.7,2.50727]
[1720970642622,2.446,3191.2,3190.7,2.50727]
[1720970642919,0.04363184,3191.1,3190.7,2.50727]
[1720970644860,2.446,3191.2,3190.7,2.50727]
[1720970645019,2.7355864,3191.2,3190.7,2.50727]
[1720970645358,0.04363184,3191.1,3190.8,2.50719]
[1720970645567,0.04363184,3191.1,3190.8,3.30019]
[1720970649857,0.53558507,3191.1,3190.8,3.30019]
[1720970650452,0.53558507,3191.1,3190.8,2.50719]
[1720970653037,0.53558507,3191.1,3190.8,3.30019]
[1720970653240,0.53558507,3191.1,3191.0,3.30005]
[1720970653443,0.53558507,3191.1,3191.0,11.30755]
[1720970653648,0.49195323,3191.1,3191.0,11.30755]
[1720970654675,0.49195323,3191.1,3191.0,8.8005]
[1720970655367,0.49195323,3191.1,3191.0,5.0141]
[1720970655570,0.49195323,3191.1,3191.0,5.8071]
[1720970656356,0.49195323,3191.1,3191.0,3.30005]
[1720970657401,0.49195323,3191.1,3191.0,2.50705]
[1720970657569,0.49195323,3191.1,3191.0,3.30005]
[1720970657863,2.90465323,3191.1,3190.8,3.30015]
[1720970658159,0.53194952,3191.1,3190.8,3.30015]
[1720970658459,0.53194952,3191.1,3190.8,2.50715]
[1720970658763,0.53194952,3191.1,3191.0,2.50705]
[1720970659129,0.49195323,3191.1,3191.0,2.50705]
[1720970659759,0.49195323,3191.1,3190.8,5.01429]
[1720970659938,0.49195323,3191.1,3190.9,2.50712]
[1720970660439,0.49195323,3191.1,3191.0,2.50705]
[1720970661666,0.49195323,3191.1,3191.0,5.515519]
[1720970663039,0.49195323,3191.1,3191.0,8.572569]
[1720970663244,0.49195323,3191.1,3191.0,13.507552]
[1720970664673,0.49195323,3191.1,3191.0,16.507552]
[1720970669376,0.49195323,3191.1,3191.0,15.920969]
[1720970672073,0.49195323,3191.1,3191.0,10.420519]
[1720970674736,0.49195323,3191.1,3191.0,9.9191]
[1720970676654,0.49195323,3191.1,3191.0,6.9191]
[1720970677072,0.49195323,3191.1,3191.0,4.41205]
[1720970677275,0.49195323,3191.1,3191.0,2.50705]
[1720970678494,0.49195323,3191.1,3191.0,3.30105]
[1720970679767,0.49195323,3191.1,3191.0,3.27605]
[1720970682272,0.53258384,3191.1,3191.0,3.27605]
[1720970682883,0.53258384,3191.1,3191.0,3.22605]
[1720970687781,0.49195323,3191.1,3191.0,6.3753532]
[1720970687945,0.49195323,3191.1,3191.0,6.9253532]
[1720970688146,0.53259184,3191.1,3191.0,6.9253532]
[1720970688346,0.53259184,3191.1,3191.0,6.86268303]
[1720970690276,0.49195323,3191.1,3191.0,6.86268303]
[1720970694252,0.49195323,3191.1,3191.0,6.31268303]
[1720970694572,0.49195323,3191.1,3191.0,6.2831]
[1720970695113,0.53123113,3191.1,3191.0,6.2831]
[1720970695603,0.53123113,3191.1,3191.0,0.794]
[1720970695761,0.53123113,3191.1,3190.9,2.5071]
[1720970695967,0.53123113,3191.1,3190.6,2.50732]
[1720970696165,1.64556253,3191.0,3190.8,0.794]
[1720970696475,1.68459852,3191.0,3190.8,0.794]
[1720970696677,1.68510536,3191.0,3190.8,0.794]
[1720970697000,1.64606937,3190.9,3190.8,0.794]
[1720970697301,1.68507978,3190.9,3190.8,0.794]
[1720970697998,1.93125439,3190.9,3190.8,0.794]
[1720970698297,4.24715439,3190.9,3190.6,0.794]
[1720970698598,1.64577483,3190.8,3190.6,0.794]
[1720970698991,0.03887178,3190.7,3190.6,0.794]
[1720970699394,1.64577483,3190.8,3190.6,0.794]
[1720970699573,0.03890093,3190.7,3190.6,0.794]
[1720970699779,2.06613353,3190.8,3190.6,0.794]
[1720970700011,0.03890093,3190.7,3190.6,0.794]
[1720970700413,0.03890093,3190.7,3190.0,7.49983755]
[1720970700414,2.3159,3190.7,3190.0,5.78606755]
[1720970700619,1.64520454,3190.5,3190.0,5.78606755]
[1720970700912,0.03855888,3190.4,3190.2,0.794]
[1720970701600,0.03855888,3190.4,3190.3,2.5076]
[1720970701914,1.64520454,3190.8,3190.5,2.50744]
[1720970702080,2.80785323,3191.1,3190.7,0.794]
[1720970702426,1.64415967,3190.8,3190.5,2.50744]
[1720970702600,0.28078532,3191.0,3190.6,2.50736]
[1720970702601,1.64415967,3190.9,3190.6,2.50736]
[1720970702799,2.80785323,3191.1,3190.8,2.5072]
[1720970702800,2.1361129,3191.1,3190.8,2.5072]
[1720970703006,0.49195323,3191.1,3190.8,2.5072]
[1720970703388,0.49195323,3191.1,3190.8,2.50715]
[1720970703589,0.49195323,3191.1,3191.0,2.50705]
[1720970704216,0.49195323,3191.1,3190.8,2.50715]
[1720970705014,2.1361129,3191.1,3190.9,2.50712]
[1720970705233,0.49195323,3191.1,3190.9,2.50712]
[1720970705598,0.49195323,3191.1,3190.6,5.01462]
[1720970706096,0.03753274,3191.0,3190.6,5.01462]
[1720970707393,0.03753274,3191.0,3190.8,2.50714]
[1720970707695,0.03753274,3191.0,3190.9,2.50712]
[1720970708633,0.03753274,3191.0,3190.9,2.56979188]
[1720970708795,0.03753274,3191.0,3190.9,2.50712]
[1720970710924,0.03753274,3191.0,3190.9,2.56979127]
[1720970711127,0.03753274,3191.0,3190.9,2.50712]
[1720970713343,0.03753274,3191.0,3190.8,2.50714]
[1720970715051,0.03753274,3191.0,3190.9,2.50712]
[1720970715543,0.03753274,3191.0,3190.9,3.07121864]
[1720970716248,0.03753274,3191.0,3190.9,7.88933864]
[1720970716552,0.03753274,3191.0,3190.9,8.43933864]
[1720970717447,0.03753274,3191.0,3190.9,6.12833864]
[1720970717615,0.03753274,3191.0,3190.9,6.065666]
[1720970718328,0.49195323,3191.1,3191.0,2.50705]
[1720970718646,0.49195323,3191.1,3191.0,3.1136096]
[1720970719542,0.52963211,3191.1,3191.0,3.1136096]
[1720970719720,0.52963211,3191.1,3191.0,2.50705]
[1720970720360,0.52963211,3191.1,3191.0,5.0141]
[1720970722567,0.52963211,3191.1,3191.0,5.5641]
[1720970725142,0.52963211,3191.1,3191.0,9.97615]
[1720970725338,0.49195323,3191.1,3191.0,9.97615]
[1720970725560,0.49195323,3191.1,3191.0,10.973765]
[1720970728485,0.49195323,3191.1,3191.0,9.861765]
[1720970738051,0.49195323,3191.1,3191.0,6.561715]
[1720970738266,0.49195323,3191.1,3191.0,5.5641]
[1720970738590,0.49195323,3191.1,3191.0,6.3571]
[1720970739673,0.52661686,3191.1,3191.0,6.3571]
[1720970740777,0.49195323,3191.1,3191.0,6.3571]
[1720970741491,0.52642261,3191.1,3191.0,6.3571]
[1720970741953,0.49195323,3191.1,3191.0,6.3571]
[1720970743352,0.49195323,3191.1,3191.0,6.99281]
[1720970743558,0.49195323,3191.1,3191.0,9.49986]
[1720970746263,0.49195323,3191.1,3191.0,6.99281]
[1720970746517,0.49195323,3191.1,3191.0,9.49986]
[1720970760999,0.49195323,3191.1,3191.0,6.19981]
[1720970761196,2.87045323,3191.1,3191.0,6.3571]
[1720970761410,2.90507247,3191.1,3191.0,6.3571]
[1720970762643,0.49195323,3191.1,3191.0,6.3571]
[1720970769334,0.49195323,3191.1,3191.0,8.83915]
[1720970779134,0.49195323,3191.1,3191.0,6.3321]
[1720970779561,0.49195323,3191.1,3191.0,8.83915]
[1720970779926,0.49195323,3191.1,3191.0,6.3321]
[1720970780779,0.52526628,3191.1,3191.0,6.3321]
[1720970782774,0.49195323,3191.1,3191.0,6.3321]
[1720970782963,0.49195323,3191.1,3191.0,7.216026]
[1720970783329,0.49195323,3191.1,3191.0,12.222176]
[1720970784766,0.49195323,3191.1,3191.0,9.723076]
[1720970791684,0.49195323,3191.1,3191.0,12.723076]
[1720970791987,0.19602458,3191.1,3191.0,15.44995466]
[1720970792188,0.19602458,3191.1,3191.0,13.81382848]
[1720970792354,0.19602458,3191.1,3191.0,15.44990455]
[1720970792755,0.19602458,3191.1,3191.0,15.44983907]
[1720970793679,0.19602458,3191.1,3191.0,13.81378123]
[1720970793890,0.19602458,3191.1,3191.0,12.723076]
[1720970794269,0.19602458,3191.1,3191.0,13.81381985]
[1720970795574,0.19602458,3191.1,3191.0,16.32086985]
[1720970796000,0.19602458,3191.1,3191.0,15.230126]
[1720970796186,0.19602458,3191.1,3191.0,16.32085947]
[1720970798165,0.19602458,3191.1,3191.0,17.91642814]
[1720970798382,0.19602458,3191.1,3191.0,15.40937814]
[1720970799285,0.19602458,3191.1,3191.0,14.31864467]
[1720970799482,0.19602458,3191.1,3191.0,15.40936246]
[1720970800302,0.19602458,3191.1,3191.0,14.31864467]
[1720970802110,0.19602458,3191.1,3191.0,17.04546532]
[1720970802404,0.19602458,3191.1,3191.0,15.40939922]
[1720970802611,0.19602458,3191.1,3191.0,14.31867126]
[1720970802797,2.4737,3191.7,3191.6,5.01314]
[1720970803101,2.50508022,3191.7,3191.6,5.80614]
[1720970807801,4.15084218,3191.7,3191.6,5.80614]
[1720970808013,0.03138022,3191.7,3191.6,5.80614]
[1720970808206,2.33518022,3191.7,3191.6,5.80614]
[1720970810069,0.03138022,3191.7,3191.6,5.80614]
[1720970810432,2.13755825,3191.8,3191.7,5.013]
[1720970812473,0.49183721,3191.8,3191.7,5.013]
[1720970813915,0.52333731,3191.8,3191.7,5.013]
[1720970814948,0.52333731,3191.8,3191.7,5.5936]
[1720970815231,0.52333731,3191.8,3191.7,6.1436]
[1720970815995,0.49183721,3191.8,3191.7,6.1436]
[1720970816196,0.52351445,3191.8,3191.7,6.1436]
[1720970819034,0.52351445,3191.8,3191.7,8.6501]
[1720970819599,1.64472235,3192.5,3192.1,2.50613]
[1720970819832,2.63180907,3192.7,3192.5,5.01174]
[1720970819833,1.64472235,3192.6,3192.5,5.01174]
[1720970820040,3.94852235,3192.7,3192.6,2.50579]
[1720970820212,3.94852235,3192.7,3192.6,5.01158]
[1720970821344,1.64472235,3192.7,3192.6,5.01158]
[1720970821506,4.27747782,3193.0,3192.8,2.5056]
[1720970821712,4.27747782,3193.0,3192.9,0.793]
[1720970821920,2.3038,3193.0,3192.9,0.793]
[1720970822118,2.76435396,3193.0,3192.9,0.793]
[1720970822809,2.3038,3193.0,3192.9,0.793]
[1720970823015,3.94746183,3193.0,3192.9,3.29855]
[1720970823324,3.97723538,3193.0,3192.9,5.8041]
[1720970823533,2.33357355,3193.0,3192.9,5.8041]
[1720970824234,2.33357355,3193.0,3192.9,3.29855]
[1720970828547,2.33357355,3193.0,3192.9,6.384518]
[1720970828548,0.02977355,3193.0,3192.9,6.384518]
[1720970828752,0.02977355,3193.0,3192.9,6.934518]
[1720970829054,0.32806174,3193.2,3193.1,2.5054]
[1720970829212,0.49172973,3193.3,3193.2,2.50532]
[1720970832643,0.52172102,3193.3,3193.2,2.50532]
[1720970833359,0.52172102,3193.3,3193.2,5.01064]
[1720970833521,0.52172102,3193.3,3193.2,6.141004]
[1720970833855,0.02999129,3193.3,3193.2,6.20362964]
[1720970834263,2.3853,3193.6,3193.5,9.95954]
[1720970834264,0.49156329,3193.6,3193.5,9.95954]
[1720970834418,10.32799074,3194.2,3194.1,5.00922]
[1720970834621,10.0,3194.2,3194.1,5.80222]
[1720970835038,10.0,3194.2,3194.1,6.35222]
[1720970835550,10.0,3194.2,3194.1,5.80222]
[1720970837564,12.3853,3194.2,3194.1,2.50461]
[1720970837720,12.3853,3194.2,3194.1,3.29761]
[1720970838624,10.0,3194.2,3194.1,3.29761]
[1720970838930,10.0,3194.2,3194.1,6.31898226]
[1720970839135,10.0,3194.2,3194.1,6.86898226]
[1720970846039,10.0,3194.2,3194.1,9.37359226]
[1720970847188,10.0,3194.2,3194.1,6.86898226]
[1720970847482,10.0,3194.2,3194.1,9.37359226]
[1720970851919,10.0,3194.2,3194.1,6.86898226]
[1720970854696,10.0,3194.2,3194.1,6.86776426]
[1720970858985,10.0,3194.2,3194.1,6.84276426]
[1720970859185,10.0,3194.2,3194.1,3.028392]
[1720970859498,12.312,3194.2,3193.5,4.99206755]
[1720970859826,12.80342961,3194.2,3193.8,2.50485]
[1720970860029,12.80342961,3194.2,3193.9,0.793]
[1720970860468,2.312,3194.1,3193.5,4.99206755]
[1720970860675,2.312,3194.1,3193.8,0.793]
[1720970861370,2.312,3194.1,3193.6,0.793]
[1720970864881,2.312,3194.1,3193.5,4.99206755]
[1720970866911,11.80457955,3194.2,3192.8,3.29863]
[1720970866912,2.3987,3193.8,3192.8,3.29863]
[1720970867115,2.3987,3193.8,3192.8,0.793]
[1720970867669,2.3987,3193.6,3192.8,0.793]
[1720970868480,2.3987,3193.6,3192.8,3.29863]
[1720970869378,2.3987,3193.6,3192.8,0.793]
[1720970869691,2.3987,3193.4,3192.8,0.793]
[1720970870574,2.3987,3193.4,3192.3,2.506]
[1720970870804,2.3987,3193.4,3192.4,0.793]
[1720970871478,2.3987,3193.2,3192.4,0.793]
[1720970873886,2.3987,3193.2,3192.4,3.29894]
[1720970877446,2.63857,3193.2,3192.4,3.29894]
[1720970878240,2.63857,3193.2,3192.0,2.5062]
[1720970878241,0.793,3192.9,3192.0,2.5062]
[1720970878415,2.3987,3192.8,3192.0,2.5062]
[1720970879010,2.3987,3192.8,3192.1,2.50618]
[1720970879219,2.71787,3192.8,3192.1,2.50618]
[1720970881550,2.71787,3192.8,3192.0,3.2992]
[1720970881727,2.71787,3192.8,3192.0,5.80539]
[1720970882115,2.71787,3192.8,3192.0,0.793]
[1720970882321,2.71787,3192.8,3191.8,8.29142755]
[1720970882515,2.3987,3192.6,3191.8,5.78506755]
[1720970882728,2.3987,3192.4,3191.8,4.99206755]
[1720970883129,2.3987,3192.4,3191.8,5.78506755]
[1720970883321,2.3987,3192.4,3191.8,8.29147755]
[1720970883517,2.3987,3192.4,3191.8,7.49847755]
[1720970884420,2.3987,3192.4,3191.6,3.29951]
[1720970884625,2.63857,3192.4,3191.6,3.29951]
[1720970884853,2.63857,3192.4,3191.7,2.50648]
[1720970885063,2.63857,3192.4,3191.8,2.5064]
[1720970885356,2.63857,3192.4,3191.6,3.29951]
[1720970885592,0.263857,3192.3,3191.6,5.80601]